fUSD/lending_fUSD_20250826
["ID","MTS","AMOUNT","RATE_DAILY","PERIOD"]
[381507795,1756241470080,-221.229827,0.000256,7]
[381507796,1756241470090,-221.229827,0.000256,7]
[381507797,1756241470101,-221.229827,0.000256,7]
[381507798,1756241470111,-221.229821,0.000256,7]
[381507799,1756241470121,-151.0,0.000256,7]
[381507800,1756241470130,-151.0,0.000256,7]
[381507801,1756241470140,-1000.0,0.000256,2]
[381507802,1756241470149,-1000.0,0.000256,2]
[381507803,1756241470159,-1016.0,0.000256,2]
[381507804,1756241470169,-1000.0,0.000256,2]
[381507805,1756241470179,-1000.0,0.000256,2]
[381507806,1756241470188,-1000.0,0.000256,2]
[381507807,1756241470198,-160.0,0.000256,3]
[381507808,1756241470207,-212.18043798,0.000256,3]
[381507809,1756241470217,-1000.0,0.000256,2]
[381507810,1756241470227,-1425.0,0.00025604,2]
[381507811,1756241470236,-16065.88564209,0.0002561,2]
[381507812,1756241470246,-235.35,0.00025628,2]
[381507813,1756241470255,-150.0,0.00025637,4]
[381507814,1756241470266,-6088.06826466,0.00025659,4]
[381507815,1756241470275,-6419.15269785,0.00025659,4]
[381507816,1756241470286,-1425.0,0.0002567,2]
[381507817,1756241470297,-150.0,0.00025694,2]
[381507818,1756241470307,-1425.0,0.00025694,2]
[381507819,1756241470316,-222.39487227,0.000257,2]
[381507820,1756241470326,-200.0,0.0002571,7]
[381507821,1756241470336,-1000.0,0.00025715,2]
[381507822,1756241470345,-164.44854057,0.0002573,2]
[381507823,1756241470355,-9482.32447782,0.00025733,2]
[381507824,1756241470365,-409.0,0.00025753,7]
[381507825,1756241470375,-503.0,0.00025753,7]
[381507826,1756241470385,-500.0,0.00025754,7]
[381507827,1756241470395,-150.0,0.00025765,2]
[381507828,1756241470404,-509.0,0.00025767,2]
[381507829,1756241470415,-926.0,0.00025768,2]
[381507830,1756241470424,-3374.0,0.00025768,2]
[381507831,1756241470434,-1256.0,0.00025768,2]
[381507832,1756241470444,-2031.0,0.00025768,2]
[381507833,1756241470454,-1658.0,0.00025768,2]
[381507834,1756241470464,-566.0,0.00025768,2]
[381507835,1756241470474,-599.0,0.00025768,2]
[381507836,1756241470484,-1298.0,0.00025768,2]
[381507837,1756241470494,-6146.0,0.00025768,2]
[381507838,1756241470504,-718.0,0.00025768,2]
[381507839,1756241470514,-21104.0,0.00025768,2]
[381507840,1756241470524,-195.756,0.00025768,2]
[381507841,1756241470534,-195.708,0.00025768,2]
[381507842,1756241470547,-4155.0,0.00025768,2]
[381507843,1756241470557,-895.0,0.00025768,2]
[381507844,1756241470567,-1425.0,0.0002578,2]
[381507845,1756241470578,-1425.0,0.00025785,2]
[381507846,1756241470588,-1425.0,0.00025805,2]
[381507847,1756241470598,-150.0,0.00025806,4]
[381507848,1756241470608,-1000.0,0.00025826,2]
[381507849,1756241470618,-643.0,0.0002583,2]
[381507850,1756241470628,-1000.0,0.00025835,2]
[381507851,1756241470639,-519.0,0.00025836,7]
[381507852,1756241470651,-500.0,0.00025836,7]
[381507853,1756241470662,-151.0,0.00025844,2]
[381507854,1756241470672,-1425.0,0.00025852,2]
[381507855,1756241470683,-1425.0,0.00025856,2]
[381507856,1756241470693,-863.26472437,0.00025868,2]
[381507857,1756241470703,-1500.0,0.00025868,2]
[381507858,1756241470712,-1500.0,0.00025868,2]
[381507859,1756241470723,-1000.0,0.0002587,2]
[381507860,1756241470733,-503.42014745,0.00025886,2]
[381507861,1756241470743,-409.0,0.0002589,7]
[381507862,1756241470753,-503.0,0.0002589,7]
[381507863,1756241470764,-150.0,0.00025893,2]
[381507864,1756241470775,-1425.0,0.00025913,2]
[381507865,1756241470786,-435.8425876,0.00025915,2]
[381507866,1756241470796,-6088.06826466,0.00025932,4]
[381507867,1756241470807,-6419.15269785,0.00025932,4]
[381507868,1756241470818,-1000.0,0.00025952,2]
[381507869,1756241470828,-1000.0,0.00025958,2]
[381507870,1756241470840,-1000.0,0.00025962,2]
[381507871,1756241470850,-1000.0,0.00025968,2]
[381507872,1756241470861,-1472.83011308,0.00025968,2]
[381507873,1756241470870,-1500.0,0.00025968,2]
[381507874,1756241470880,-1500.0,0.00025968,2]
[381507875,1756241470890,-652.44285119,0.0002597,2]
[381507876,1756241470900,-1600.0,0.0002597,2]
[381507877,1756241470910,-150.0,0.00025974,4]
[381507878,1756241470921,-587.10090826,0.0002599,2]
[381507879,1756241470931,-1425.0,0.00025993,2]
[381507880,1756241470941,-242.05,0.00026,7]
[381507881,1756241470951,-242.05,0.00026,7]
[381507882,1756241470961,-4421.34490359,0.00026,2]
[381507883,1756241470972,-4433.65,0.00026,2]
[381507884,1756241470982,-2668.11923443,0.00026,2]
[381507885,1756241470993,-211.59058449,0.00026,2]
[381507886,1756241471003,-4276.46,0.00026,7]
[381507887,1756241471013,-7577.55,0.00026,7]
[381507888,1756241471023,-1057.85,0.00026,2]
[381507889,1756241471033,-409.68272476,0.00026,3]
[381507890,1756241471046,-1425.0,0.00026,2]
[381507891,1756241471056,-160.0,0.00026,3]
[381507892,1756241471066,-212.18043798,0.00026,3]
[381507893,1756241471077,-844.63891918,0.00026,3]
[381507894,1756241471087,-600.0,0.00026,2]
[381507895,1756241471097,-1425.0,0.00026004,2]
[381507896,1756241471107,-1425.0,0.00026009,2]
[381507897,1756241471117,-1000.0,0.00026016,2]
[381507898,1756241471126,-503.0,0.00026027,7]
[381507899,1756241471136,-500.0,0.00026028,7]
[381507900,1756241471146,-500.0,0.0002605,2]
[381507901,1756241471155,-500.0,0.0002605,2]
[381507902,1756241471165,-1425.0,0.00026052,2]
[381507903,1756241471175,-1425.0,0.0002607,2]
[381507904,1756241471185,-1000.0,0.00026076,2]
[381507905,1756241471195,-1000.0,0.00026087,2]
[381507906,1756241471205,-519.0,0.0002611,7]
[381507907,1756241471215,-500.0,0.0002611,7]
[381507908,1756241471224,-1425.0,0.00026121,2]
[381507909,1756241471235,-9482.32447782,0.00026122,2]
[381507910,1756241471245,-1425.0,0.00026133,2]
[381507911,1756241471593,-1425.0,0.00026142,2]
[381507912,1756241471604,-150.0,0.00026143,4]
[381507913,1756241471614,-1425.0,0.00026156,2]
[381507914,1756241471623,-1425.0,0.00026168,2]
[381507915,1756241471634,-1000.0,0.00026195,2]
[381507916,1756241471647,-1393.4,0.000262,7]
[381507917,1756241471656,-4992.64,0.000262,7]
[381507918,1756241471666,-1000.0,0.00026205,2]
[381507919,1756241471675,-6088.06826466,0.00026205,4]
[381507920,1756241471686,-6419.15269785,0.00026205,4]
[381507921,1756241471696,-1000.0,0.00026211,2]
[381507922,1756241471706,-1425.0,0.00026233,2]
[381507923,1756241471715,-164.44854057,0.00026263,2]
[381507924,1756241471728,-1425.0,0.00026264,2]
[381507925,1756241471738,-22760.65570671,0.00026293,5]
[381507926,1756241471748,-500.0,0.00026302,7]
[381507927,1756241471759,-1425.0,0.00026303,2]
[381507928,1756241471768,-150.0,0.00026312,4]
[381507929,1756241471778,-1182.23,0.00026314,7]
[381507930,1756241471790,-1000.0,0.0002632,2]
[381507931,1756241471801,-1421.6525712,0.00026333,2]
[381507932,1756241471814,-1000.0,0.00026334,2]
[381507933,1756241471824,-1000.0,0.00026336,2]
[381507934,1756241471835,-166.12,0.00026339,2]
[381507935,1756241471846,-1425.0,0.00026344,2]
[381507936,1756241471858,-1000.0,0.00026346,2]
[381507937,1756241471868,-1000.0,0.00026355,2]
[381507938,1756241471878,-1425.0,0.00026355,2]
[381507939,1756241471888,-1000.0,0.00026356,2]
[381507940,1756241471898,-1425.0,0.0002637,2]
[381507941,1756241471907,-1425.0,0.00026374,2]
[381507942,1756241471917,-150.0,0.00026375,2]
[381507943,1756241471926,-1425.0,0.00026376,2]
[381507944,1756241471936,-1425.0,0.00026378,2]
[381507945,1756241471946,-519.0,0.00026384,7]
[381507946,1756241471956,-408.21471449,0.00026384,7]
[381507947,1756241471965,-151.0,0.00026392,2]
[381507948,1756241471975,-616.48,0.00026395,2]
[381507949,1756241471985,-150.0,0.00026399,2]
[381507950,1756241471995,-26872.21858646,0.000264,2]
[381507951,1756241472004,-32012.09,0.000264,2]
[381507952,1756241472014,-77452.36,0.000264,7]
[381507953,1756241472023,-150.0,0.00026415,2]
[381507954,1756241472033,-1000.0,0.00026416,2]
[381507955,1756241472045,-2019.52790019,0.00026416,2]
[381507956,1756241472055,-1000.0,0.00026445,2]
[381507957,1756241472065,-1425.0,0.00026448,2]
[381507958,1756241472074,-1000.0,0.00026458,2]
[381507959,1756241472083,-1425.0,0.00026459,2]
[381507960,1756241472093,-1000.0,0.0002646,2]
[381507961,1756241472102,-3000.0,0.00026473,2]
[381507962,1756241472111,-1500.0,0.00026473,2]
[381507963,1756241472121,-1600.0,0.00026473,2]
[381507964,1756241472130,-6088.06826466,0.00026478,4]
[381507965,1756241472140,-6419.15269785,0.00026478,4]
[381507966,1756241472150,-150.0,0.0002648,4]
[381507967,1756241472159,-150.0,0.00026491,2]
[381507968,1756241472169,-1000.0,0.00026492,2]
[381507969,1756241472178,-1000.0,0.00026495,2]
[381507970,1756241472187,-46834.75157463,0.000265,2]
[381507971,1756241472198,-9482.32447782,0.00026511,2]
[381507972,1756241472208,-1000.0,0.00026513,2]
[381507973,1756241472219,-1153.2398906,0.00026516,2]
[381507974,1756241472230,-1000.93939924,0.00026516,2]
[381507975,1756241472240,-1000.0,0.00026521,2]
[381507976,1756241472253,-1000.0,0.00026521,2]
[381507977,1756241472268,-1000.0,0.00026526,2]
[381507978,1756241472277,-1000.0,0.00026529,2]
[381507979,1756241472288,-1000.0,0.00026536,2]
[381507980,1756241472297,-1425.0,0.00026536,2]
[381507981,1756241472307,-1425.0,0.00026539,2]
[381507982,1756241472316,-435.8425876,0.00026544,2]
[381507983,1756241472326,-1425.0,0.00026545,2]
[381507984,1756241472335,-600.0,0.00026548,2]
[381507985,1756241472344,-1000.0,0.00026554,2]
[381507986,1756241472353,-150.0,0.00026557,2]
[381507987,1756241472362,-1000.0,0.00026558,2]
[381507988,1756241472371,-1000.0,0.00026566,2]
[381507989,1756241472381,-500.0,0.00026576,7]
[381507990,1756241472390,-1425.0,0.00026586,2]
[381507991,1756241472399,-150.0,0.00026596,2]
[381507992,1756241472408,-1000.0,0.00026598,2]
[381507993,1756241472418,-1000.0,0.00026598,2]
[381507994,1756241472427,-1425.0,0.000266,2]
[381507995,1756241472436,-150.0,0.000266,2]
[381507996,1756241472445,-1000.0,0.00026602,2]
[381507997,1756241472455,-1000.0,0.00026607,2]
[381507998,1756241472464,-1425.0,0.00026614,2]
[381507999,1756241472473,-150.0,0.00026618,2]
[381508000,1756241472482,-1000.0,0.00026621,2]
[381508001,1756241472491,-150.0,0.00026645,2]
[381508002,1756241472500,-1425.0,0.00026648,2]
[381508003,1756241472509,-150.0,0.00026649,4]
[381508004,1756241472519,-519.0,0.00026658,7]
[381508005,1756241472528,-1425.0,0.00026658,2]
[381508006,1756241472537,-1000.0,0.0002666,2]
[381508007,1756241472547,-219.83,0.00026676,2]
[381508008,1756241472556,-200.0,0.0002669,3]
[381508009,1756241472565,-1000.0,0.00026696,2]
[381508010,1756241472574,-150.0,0.00026698,2]
[381508011,1756241472583,-1425.0,0.00026702,2]
[381508012,1756241472593,-1000.0,0.00026707,2]
[381508013,1756241472602,-1000.0,0.00026716,2]
[381508014,1756241472612,-1425.0,0.00026721,2]
[381508015,1756241472622,-1000.0,0.00026737,2]
[381508016,1756241472631,-170.17168031,0.00026739,4]
[381508017,1756241472646,-1425.0,0.00026743,2]
[381508018,1756241472660,-6088.06826466,0.00026751,4]
[381508019,1756241472669,-6419.15269785,0.00026751,4]
[381508020,1756241472679,-1000.0,0.00026757,2]
[381508021,1756241472689,-1000.0,0.0002676,2]
[381508022,1756241472698,-150.0,0.00026765,2]
[381508023,1756241472708,-401.5725806,0.00026773,2]
[381508024,1756241472717,-502.87288794,0.00026779,2]
[381508025,1756241472728,-1000.0,0.00026795,2]
[381508026,1756241472739,-164.44854057,0.00026795,2]
[381508027,1756241472748,-200.0,0.000268,2]
[381508028,1756241472758,-1000.0,0.000268,2]
[381508029,1756241472767,-1000.0,0.00026811,2]
[381508030,1756241472777,-1000.0,0.00026811,2]
[381508031,1756241472786,-150.0,0.00026818,4]
[381508032,1756241472797,-1425.0,0.00026818,2]
[381508033,1756241472807,-1425.0,0.0002682,2]
[381508034,1756241472816,-1000.0,0.00026822,2]
[381508035,1756241472827,-1000.0,0.00026824,2]
[381508036,1756241472836,-1000.0,0.00026825,2]
[381508037,1756241472846,-1000.0,0.00026829,2]
[381508038,1756241472856,-1000.0,0.00026832,2]
[381508039,1756241472866,-1000.0,0.00026834,2]
[381508040,1756241472876,-150.0,0.00026835,2]
[381508041,1756241472885,-1000.0,0.00026836,2]
[381508042,1756241472895,-1000.0,0.00026836,2]
[381508043,1756241472906,-1000.0,0.00026837,2]
[381508044,1756241472916,-1425.0,0.0002684,2]
[381508045,1756241472926,-829.87,0.00026849,6]
[381508046,1756241472935,-500.0,0.0002685,7]
[381508047,1756241472945,-150.0,0.00026857,2]
[381508048,1756241472955,-500.0,0.0002687,2]
[381508049,1756241472966,-1000.0,0.0002687,2]
[381508050,1756241472975,-1000.0,0.00026872,2]
[381508051,1756241472985,-150.0,0.00026878,2]
[381508052,1756241472994,-1000.0,0.0002688,2]
[381508053,1756241473004,-1000.0,0.00026881,2]
[381508054,1756241473014,-1425.0,0.00026883,2]
[381508055,1756241473024,-1000.0,0.0002689,2]
[381508056,1756241473033,-150.0,0.00026897,2]
[381508057,1756241473043,-1000.0,0.00026898,2]
[381508058,1756241473052,-213.59,0.000269,2]
[381508059,1756241473061,-9482.32447782,0.000269,2]
[381508060,1756241473071,-200.0,0.000269,9]
[381508061,1756241473080,-675.24340376,0.0002691,2]
[381508062,1756241473089,-9460.00132627,0.0002691,4]
[381508063,1756241473098,-9460.00132627,0.0002691,4]
[381508064,1756241473108,-9460.00132627,0.0002691,4]
[381508065,1756241473118,-9460.00132627,0.0002691,4]
[381508066,1756241473127,-9460.00132627,0.0002691,4]
[381508067,1756241473137,-9460.00132627,0.0002691,4]
[381508068,1756241473147,-9460.00132627,0.0002691,4]
[381508069,1756241473156,-9460.00132627,0.0002691,4]
[381508070,1756241473165,-9460.00132627,0.0002691,4]
[381508071,1756241473175,-9460.00132627,0.0002691,4]
[381508072,1756241473184,-9460.00132627,0.0002691,4]
[381508073,1756241473193,-9460.00132627,0.0002691,4]
[381508074,1756241473203,-9460.00132627,0.0002691,4]
[381508075,1756241473212,-9460.00132627,0.0002691,4]
[381508076,1756241473221,-9460.00132627,0.0002691,4]
[381508077,1756241473230,-9460.00132627,0.0002691,4]
[381508078,1756241473239,-503.0,0.00026926,7]
[381508079,1756241473248,-1000.0,0.00026931,2]
[381508080,1756241473257,-519.0,0.00026932,7]
[381508081,1756241473267,-1000.0,0.00026933,2]
[381508082,1756241473277,-160.0,0.00026938,2]
[381508083,1756241473286,-346.92554585,0.00026938,2]
[381508084,1756241473297,-277.35679052,0.00026938,2]
[381508085,1756241473306,-695.39793187,0.00026939,2]
[381508086,1756241473316,-156.92465471,0.0002694,2]
[381508087,1756241473325,-1425.0,0.00026944,2]
[381508088,1756241473334,-150.0,0.00026951,2]
[381508089,1756241473344,-150.0,0.00026951,2]
[381508090,1756241473354,-1000.0,0.00026963,2]
[381508091,1756241473363,-500.0,0.0002697,2]
[381508092,1756241473372,-500.0,0.0002697,2]
[381508093,1756241473381,-1000.0,0.0002697,2]
[381508094,1756241473391,-1000.0,0.0002697,2]
[381508095,1756241473400,-150.0,0.00026973,2]
[381508096,1756241473410,-171.988464,0.00026986,4]
[381508097,1756241473419,-1425.0,0.00026988,2]
[381508098,1756241473428,-22760.65570671,0.0002699,6]
[381508099,1756241473438,-317.2135658,0.00026994,2]
[381508100,1756241473448,-2017.08,0.00027,7]
[381508101,1756241473457,-4034.17,0.00027,7]
[381508102,1756241473467,-1210.25,0.00027,7]
[381508103,1756241473476,-242.05,0.00027,7]
[381508104,1756241473485,-242.05,0.00027,7]
[381508105,1756241473494,-130390.54448686,0.00027,3]
[381508106,1756241473504,-250.0,0.00027,2]
[381508107,1756241473513,-1923.23172006,0.00027,14]
[381508108,1756241473523,-20895.91569959,0.00027,2]
[381508109,1756241473533,-1011.08413419,0.00027,2]
[381508110,1756241473543,-3039.4336872,0.00027,2]
[381508111,1756241473552,-452.08897504,0.00027,30]
[381508112,1756241473562,-1124.380038,0.00027,2]
[381508113,1756241473573,-4276.46,0.00027,7]
[381508114,1756241473583,-7577.55,0.00027,7]
[381508115,1756241473594,-160.06409183,0.00027,2]
[381508116,1756241473603,-160.0,0.00027,3]
[381508117,1756241473613,-409.68272476,0.00027,3]
[381508118,1756241473622,-160.0,0.00027,3]
[381508119,1756241473632,-844.63891918,0.00027,3]
[381508120,1756241473642,-9460.00132627,0.0002701,4]
[381508121,1756241473654,-1247985.4733579,0.0002701,2]
[381508122,1756241473663,-247124.88945214,0.0002701,2]
[381508123,1756241473673,-15127.0,0.0002702,2]
[381508124,1756241473682,-629.0,0.0002702,2]
[381508125,1756241473693,-6088.06826466,0.00027024,4]
[381508126,1756241473702,-6419.15269785,0.00027024,4]
[381508127,1756241473712,-272.00796659,0.00027073,2]
[381508128,1756241473723,-500.0,0.00027073,2]
[381508129,1756241473733,-500.0,0.00027073,2]
[381508130,1756241473742,-500.0,0.00027073,2]
[381508131,1756241473752,-500.0,0.00027073,2]
[381508132,1756241473762,-500.0,0.00027073,2]
[381508133,1756241473771,-221.30394234,0.00027073,2]
[381508134,1756241473781,-500.0,0.00027073,2]
[381508135,1756241473791,-500.0,0.00027073,2]
[381508136,1756241473801,-500.0,0.00027073,2]
[381508137,1756241473811,-500.0,0.00027073,2]
[381508138,1756241473821,-400.83018053,0.00027073,2]
[381508139,1756241473830,-500.0,0.00027073,2]
[381508140,1756241473840,-500.0,0.00027073,2]
[381508141,1756241473849,-500.0,0.00027073,2]
[381508142,1756241473859,-500.54614658,0.00027073,2]
[381508143,1756241473868,-500.0,0.00027073,2]
[381508144,1756241473878,-500.0,0.00027073,2]
[381508145,1756241473887,-500.0,0.00027073,2]
[381508146,1756241473896,-500.0,0.00027073,2]
[381508147,1756241474031,-2182.0,0.00027091,2]
[381508148,1756241474041,-1393.4,0.000271,7]
[381508149,1756241474050,-4992.64,0.000271,7]
[381508150,1756241474059,-262.49,0.00027123,4]
[381508151,1756241474068,-500.0,0.00027124,7]
[381508152,1756241474078,-893.91581456,0.00027146,2]
[381508153,1756241474087,-1500.0,0.00027146,2]
[381508154,1756241474096,-435.8425876,0.00027172,2]
[381508155,1756241474105,-409.0,0.00027185,7]
[381508156,1756241474114,-415.0,0.00027185,7]
[381508157,1756241474123,-510.0,0.00027185,7]
[381508158,1756241474132,-32012.09,0.000272,2]
[381508159,1756241474140,-77452.36,0.000272,7]
[381508160,1756241474149,-519.0,0.00027206,7]
[381508161,1756241474159,-616.48,0.00027285,2]
[381508162,1756241474168,-9460.00132627,0.00027288,4]
[381508163,1756241474177,-6088.06,0.00027297,4]
[381508164,1756241474186,-6419.15,0.00027297,4]
[381508165,1756241474195,-1249.60809719,0.00027297,10]
[381508166,1756241474204,-3755.00759352,0.00027297,10]
[381508167,1756241474214,-169.57391605,0.00027297,10]
[381508168,1756241474223,-171.03733856,0.00027297,10]
[381508169,1756241474232,-1057.85,0.000273,2]
[381508170,1756241474241,-165.7,0.000273,16]
[381508171,1756241474251,-2182.0,0.00027318,2]
[381508172,1756241474260,-164.44854057,0.00027328,2]
[381508173,1756241474270,-500.0,0.0002737,2]
[381508174,1756241474280,-500.0,0.0002737,2]
[381508175,1756241474290,-1000.0,0.0002737,2]
[381508176,1756241474299,-1000.0,0.0002737,2]
[381508177,1756241474308,-1500.0,0.00027373,2]
[381508178,1756241474318,-500.0,0.00027373,2]
[381508179,1756241474328,-500.0,0.00027373,2]
[381508180,1756241474337,-500.0,0.00027373,2]
[381508181,1756241474347,-500.0,0.00027373,2]
[381508182,1756241474355,-500.0,0.00027373,2]
[381508183,1756241474365,-500.0,0.00027373,2]
[381508184,1756241474374,-1274.2233377,0.00027378,2]
[381508185,1756241474382,-3428.1895016,0.00027378,2]
[381508186,1756241474391,-4018.18860089,0.0002739,2]
[381508187,1756241474401,-7937.37838155,0.0002739,2]
[381508188,1756241474410,-3168.78360926,0.0002739,2]
[381508189,1756241474419,-150.0,0.0002739,2]
[381508190,1756241474429,-300.0,0.00027396,10]
[381508191,1756241474438,-300.0,0.00027396,10]
[381508192,1756241474446,-300.0,0.00027396,10]
[381508193,1756241474455,-300.0,0.00027396,10]
[381508194,1756241474465,-300.0,0.00027396,10]
[381508195,1756241474475,-300.0,0.00027396,10]
[381508196,1756241474484,-300.0,0.00027396,10]
[381508197,1756241474494,-300.0,0.00027396,10]
[381508198,1756241474503,-300.0,0.00027396,10]
[381508199,1756241474512,-423.4246746,0.00027396,10]
[381508200,1756241474522,-21724.19829733,0.00027397,2]
[381508201,1756241474532,-688.412733,0.00027397,5]
[381508202,1756241474541,-153.414316,0.00027397,5]
[381508203,1756241474551,-156.968346,0.00027397,5]
[381508204,1756241474560,-173.559573,0.00027397,5]
[381508205,1756241474569,-166.241984,0.00027397,5]
[381508206,1756241474578,-161.325453,0.00027397,5]
[381508207,1756241474587,-400.0,0.00027397,5]
[381508208,1756241474596,-400.0,0.00027397,5]
[381508209,1756241474606,-500.0,0.00027397,2]
[381508210,1756241474615,-400.0,0.00027397,5]
[381508211,1756241474624,-400.0,0.00027397,5]
[381508212,1756241474634,-400.0,0.00027397,5]
[381508213,1756241474644,-400.0,0.00027397,5]
[381508214,1756241474655,-400.0,0.00027397,5]
[381508215,1756241474664,-400.0,0.00027397,5]
[381508216,1756241474673,-400.0,0.00027397,5]
[381508217,1756241474683,-400.0,0.00027397,5]
[381508218,1756241474692,-400.0,0.00027397,5]
[381508219,1756241474702,-400.0,0.00027397,2]
[381508220,1756241474712,-400.0,0.00027397,5]
[381508221,1756241474723,-400.0,0.00027397,5]
[381508222,1756241474732,-400.0,0.00027397,2]
[381508223,1756241474741,-401.45971736,0.00027397,5]
[381508224,1756241474750,-400.0,0.00027397,5]
[381508225,1756241474759,-400.91013387,0.00027397,5]
[381508226,1756241474769,-400.0,0.00027397,5]
[381508227,1756241474778,-400.0,0.00027397,5]
[381508228,1756241474787,-400.0,0.00027397,5]
[381508229,1756241474797,-400.0,0.00027397,5]
[381508230,1756241474806,-400.4529359,0.00027397,5]
[381508231,1756241474817,-300.0,0.00027397,5]
[381508232,1756241474826,-400.0,0.00027397,5]
[381508233,1756241474835,-400.0,0.00027397,5]
[381508234,1756241474844,-400.0,0.00027397,5]
[381508235,1756241474853,-400.0,0.00027397,5]
[381508236,1756241474862,-400.0,0.00027397,5]
[381508237,1756241474871,-400.0,0.00027397,5]
[381508238,1756241474882,-221.479809,0.00027397,5]
[381508239,1756241474891,-400.0,0.00027397,5]
[381508240,1756241474900,-400.0,0.00027397,5]
[381508241,1756241474909,-400.0,0.00027397,5]
[381508242,1756241474918,-400.0,0.00027397,5]
[381508243,1756241474927,-400.0,0.00027397,5]
[381508244,1756241474937,-400.40180056,0.00027397,5]
[381508245,1756241474946,-400.0,0.00027397,5]
[381508246,1756241474955,-400.0,0.00027397,5]
[381508247,1756241474964,-400.0,0.00027397,5]
[381508248,1756241474973,-400.42019457,0.00027397,5]
[381508249,1756241474983,-446.82,0.00027397,5]
[381508250,1756241474992,-400.0,0.00027397,5]
[381508251,1756241475001,-760.76,0.00027397,5]
[381508252,1756241475010,-193.37609872,0.00027397,5]
[381508253,1756241475020,-153.858433,0.00027397,5]
[381508254,1756241475029,-400.0,0.00027397,5]
[381508255,1756241475038,-400.0,0.00027397,5]
[381508256,1756241475047,-400.0,0.00027397,5]
[381508257,1756241475057,-937.42,0.00027397,5]
[381508258,1756241475065,-400.18715278,0.00027397,5]
[381508259,1756241475074,-400.0,0.00027397,2]
[381508260,1756241475083,-400.0,0.00027397,3]
[381508261,1756241475093,-400.0,0.00027397,5]
[381508262,1756241475102,-400.0,0.00027397,5]
[381508263,1756241475111,-644.77,0.00027397,5]
[381508264,1756241475120,-150.345705,0.00027397,5]
[381508265,1756241475129,-400.0,0.00027397,5]
[381508266,1756241475138,-400.0,0.00027397,5]
[381508267,1756241475147,-400.0,0.00027397,5]
[381508268,1756241475157,-400.0,0.00027397,5]
[381508269,1756241475166,-165.749968,0.00027397,5]
[381508270,1756241475175,-400.0,0.00027397,5]
[381508271,1756241475184,-400.0,0.00027397,5]
[381508272,1756241475193,-611.35,0.00027397,5]
[381508273,1756241475203,-1087.05,0.00027397,5]
[381508274,1756241475212,-400.0,0.00027397,5]
[381508275,1756241475221,-400.0,0.00027397,5]
[381508276,1756241475231,-400.0,0.00027397,5]
[381508277,1756241475240,-400.0,0.00027397,5]
[381508278,1756241475249,-400.0,0.00027397,5]
[381508279,1756241475260,-400.0,0.00027397,5]
[381508280,1756241475269,-400.0,0.00027397,5]
[381508281,1756241475278,-504.64,0.00027397,5]
[381508282,1756241475287,-400.0,0.00027397,5]
[381508283,1756241475297,-400.91861931,0.00027397,5]
[381508284,1756241475306,-400.0,0.00027397,5]
[381508286,1756241475315,-400.0,0.00027397,5]
[381508287,1756241475325,-400.0,0.00027397,5]
[381508288,1756241475334,-418.83,0.00027397,5]
[381508289,1756241475344,-774.06,0.00027397,5]
[381508290,1756241475355,-400.69581554,0.00027397,5]
[381508291,1756241475364,-400.0,0.00027397,5]
[381508292,1756241475373,-845.02,0.00027397,5]
[381508293,1756241475382,-400.0,0.00027397,5]
[381508294,1756241475391,-640.61,0.00027397,5]
[381508295,1756241475400,-425.43,0.00027397,5]